Cogmind - Beta 13 *** ADVENTURER MODE // 2024.07.25 @ 12:19:58 Player: Jefffff Result: Destroyed by Y1-743(R) with Subdweller Laser Performance ------------- Evolutions (0) 0 Regions Visited (2) 400 Robots Destroyed (38) 190 Value Destroyed (918) 918 Prototype IDs (1) 20 Alien Tech Used (0) 0 Bonus (0) 0 TOTAL SCORE: 1528 Bonus ------- None Cogmind --------- Core Integrity 0/250 Matter 265/300 Energy 195/275 System Corruption 1% Temperature Cool (6) Movement Rolling (110) Location -10/Subcaves Parts ------- > --- POWER (1+1) ------ Ion Engine (+) Light Ion Engine > --- PROPULSION (2) --- Subdweller Monowheel Subdweller Monowheel > --- UTILITY (2) ------ Medium Storage Unit Sensor Array > --- WEAPON (2) ------- Powered Cannon > --- INVENTORY (10) --- Structural Scanner Visual Processing Unit Improved Terrain Scanner Terrain Scan Processor Seismic Detector ECM Suite Tractor Beam Beam Cannon Battle Rifle Light Cannon Peak State ------------ > --- POWER ------------ Ion Engine Light Ion Engine > --- PROPULSION ------- Subdweller Monowheel Subdweller Monowheel > --- UTILITY ---------- Medium Storage Unit Sensor Array > --- WEAPON ----------- Powered Cannon > --- INVENTORY -------- Structural Scanner Visual Processing Unit Improved Terrain Scanner Terrain Scan Processor Seismic Detector ECM Suite Tractor Beam Beam Cannon Battle Rifle Light Cannon [Rating: 23] Favorites ----------- Power Ion Engine Engine Ion Engine Power Core Light Nuclear Core Propulsion Wheel Leg Aluminum Leg Wheel Wheel Utility Medium Storage Unit Device Sensor Array Storage Medium Storage Unit Weapon Beam Cannon Energy Gun Medium Laser Energy Cannon Beam Cannon Ballistic Gun Battle Rifle Ballistic Cannon Light Cannon Build | -11 -10 -10 ------- Run | Yrd Mat Sub Slots Evolved . | . . . Power . | . . . Propulsion . | . . . Utility . | . . . Weapon . | . . . Parts Attached 43 | 6 23 14 Power 6 | 1 3 2 Engine 5 | 1 2 2 Core 1 | . 1 . Reactor . | . . . Propulsion 15 | 2 5 8 Treads . | . . . Leg 2 | 2 . . Wheel 13 | . 5 8 Hover . | . . . Flight . | . . . Utility 9 | 1 8 . Device 6 | . 6 . Storage 3 | 1 2 . Processor . | . . . Hackware . | . . . Protection . | . . . Artifact . | . . . Weapon 13 | 2 7 4 Energy Gun 4 | 2 2 . Energy Cannon 3 | . 1 2 Ballistic Gun 2 | . 1 1 Ballistic Cannon 4 | . 3 1 Launcher . | . . . Special Weapon . | . . . Impact Weapon . | . . . Slashing Weapon . | . . . Piercing Weapon . | . . . Special Melee Weapon . | . . . Unidentified Prototypes 1 | . . 1 Parts Lost 7 | . 3 4 Power 1 | . . 1 Propulsion 2 | . . 2 Utility 2 | . 2 . Weapon 2 | . 1 1 Highest Loss Streak 2 | . 2 1 To Critical Strikes . | . . . Average Slot Usage (%) 96 | . 98 89 Engine 9 | . 7 16 Core 4 | . 5 . Leg 4 | . 6 . Wheel 21 | . 21 22 Device 13 | . 13 13 Storage 13 | . 13 13 Energy Gun 6 | . 7 . Energy Cannon 8 | . 9 7 Ballistic Gun 1 | . . 6 Ballistic Cannon 9 | . 10 9 Naked Turns . | . . . Heaviest Build 28 | 13 22 28 Greatest Support 40 | 20 26 40 Greatest Overweight (x) 6 | . . 6 Average Overweight (x) . | . . . Largest Inventory Capacity 10 | 8 10 10 Average Capacity 9 | 6 9 10 Most Carried 10 | 5 10 10 Average Carried 9 | 4 9 9 Final Capacity 10 | 8 10 10 Final Carried 10 | 5 10 10 Class Distribution -------------------- 53% | Scavenger-Mutant 46% | Mutant Dominant Class ---------------- Mutant | -10/Materials Scavenger-Mutant | -10/Subcaves Resources | -11 -10 -10 ----------- Run | Yrd Mat Sub Matter Collected 945 | 233 376 336 Remotely . | . . . Salvage Created 1443 | . 1144 299 Parts 66 | . 51 15 Haulers Intercepted 2 | . 2 . Recyclers Shooed 3 | . 3 . Parts Field Recycled . | . . . Retrieved Matter . | . . . Parts Self-Destructed 1 | . . 1 Prevented . | . . . Kills | -11 -10 -10 ------- Run | Yrd Mat Sub Combat Hostiles Destroyed 20 | . 13 7 Guns 7 | . 6 1 Cannons 10 | . 5 5 Classes Destroyed 11 | . 8 3 Worker 6 | . 6 . Builder 1 | . 1 . Tunneler 1 | . 1 . Hauler 2 | . 2 . Recycler 4 | . 4 . Mechanic 1 | . 1 . Watcher 3 | . 3 . Grunt 13 | . 13 . Artisan 1 | . . 1 Cobbler 1 | . . 1 Subdweller 7 | . . 7 Best Kill Streak 4 | . 4 3 Combat Bots Only 3 | . 3 3 Max Kills in Single Turn 1 | . 1 1 Gunslinging . | . . . Exploded . | . . . Melee . | . . . Uniques/NPCs Destroyed . | . . . Combat | -11 -10 -10 -------- Run | Yrd Mat Sub Hostile Shots Fired 110 | . 74 36 Missed 24 | . 13 11 Damage Taken 1124 | . 661 463 Core 267 | . 159 108 Absorbed by Shields . | . . . Ignored by Resistances 313 | . 194 119 Regen/Repaired (Parts) 105 | . 105 . Core Remaining (%) 100 | 100 . . Volleys Fired 126 | . 87 39 Largest 2 | . 2 2 Hottest 100 | . 100 99 Shots Fired 244 | . 170 74 Gun 135 | . 108 27 Cannon 109 | . 62 47 Launcher . | . . . Special . | . . . Kinetic 91 | . 31 60 Thermal 136 | . 122 14 Explosive . | . . . Electromagnetic 17 | . 17 . Robot Hit Streak 14 | . 13 14 Robot Miss Streak 4 | . 4 2 Penetration Max . | . . . Secondary Targets 1 | . 1 . Max Gunslinging Chain 1 | . 1 . Shots Hit Robots 165 | . 109 56 Core Hits 56 | . 44 12 Critical Kills 1 | . . 1 Critical Parts Destroyed . | . . . Critical Strikes 6 | . 2 4 Burn 2 | . 2 . Meltdown 1 | . . 1 Blast 3 | . . 3 Melee Attacks . | . . . Impact . | . . . Slashing . | . . . Piercing . | . . . Sneak Attacks . | . . . Combat Hostiles . | . . . Follow-up Attacks . | . . . Damage Inflicted 2690 | . 1727 963 Guns 1261 | . 978 283 Cannons 1282 | . 602 680 Explosions 100 | . 100 . Melee . | . . . Ramming 47 | . 47 . Kinetic 1043 | . 266 777 Thermal 1454 | . 1268 186 Explosive . | . . . Electromagnetic 146 | . 146 . Impact . | . . . Slashing . | . . . Piercing . | . . . Highest Corruption 1 | . 1 1 Average Corruption 1 | . 1 1 Corruption Purged . | . . . Corruption Blocked . | . . . Effects 4 | . 3 1 Message Errors 2 | . 2 . Energy Discharges 1 | . 1 . Data Loss (minor) 1 | . . 1 Overload Shots . | . . . Overflow Damage 13 | . 13 . Projectiles . | . . . Explosions . | . . . Melee 13 | . 13 . Knockbacks 6 | . 4 2 Impact . | . . . Kinetic 6 | . 4 2 Secondary . | . . . Self-Inflicted Damage 25 | . 25 . Shots 1 | . 1 . Rammed 3 | . 3 . Targets Rammed 3 | . 3 . Kicked . | . . . Crushed . | . . . Highest Temperature 425 | . 425 7 Average Temperature 89 | . 92 3 Received Heat Transfer 516 | . 441 75 Effects 5 | . 5 . Shutdowns 1 | . 1 . Energy Bleed 1 | . 1 . Interference 2 | . 2 . Short Circuit 1 | . 1 . Siege Activations . | . . . Robots Corrupted . | . . . Combat Hostiles . | . . . Parts Fried . | . . . Impact Corruptions 1 | . 1 . Robots Melted 3 | . 2 1 Combat Hostiles 3 | . 2 1 Parts Melted 11 | . 9 2 Heat Transferred 3594 | . 3409 185 Parts Sabotaged . | . . . Parts Stolen . | . . . Parts Stripped . | . . . Power Chain Reactions 1 | . 1 . Alert | -11 -10 -10 ------- Run | Yrd Mat Sub Peak Influence 160 | . 160 . Initial . | . . . Average 39 | . 41 . Maximum Alert Level . | . . . Low Security (%) 100 | 100 100 . Level 1 . | . . . Level 2 . | . . . Level 3 . | . . . Level 4 . | . . . Level 5 . | . . . High Security . | . . . Max Security . | . . . Squads Dispatched 2 | . 2 . Investigation 2 | . 2 . Extermination . | . . . Reinforcement . | . . . Assault . | . . . Garrison . | . . . Intercept . | . . . Searches Triggered . | . . . Construction Impeded . | . . . Haulers Reinforced . | . . . Active Scanning Responses . | . . . Cargo Convoy Interrupts . | . . . Stealth | -11 -10 -10 --------- Run | Yrd Mat Sub Distress Signals . | . . . Communications Jammed . | . . . Distress Signals . | . . . Times Spotted 26 | . 18 8 Peak Tracking Total 3 | . 3 3 Tactical Retreats . | . . . Traps | -11 -10 -10 ------- Run | Yrd Mat Sub Traps Triggered 8 | . 7 1 Indirectly . | . . . Trap Hack Attempts . | . . . Triggered . | . . . Disarmed . | . . . Reprogrammed . | . . . Reused . | . . . Traps Extracted . | . . . Installed . | . . . Triggered . | . . . Machines | -11 -10 -10 ---------- Run | Yrd Mat Sub Machines Disabled 5 | . 5 . Max in Single Turn 1 | . 1 . Machines Repaired . | . . . Machines Dismantled . | . . . Machines Sabotaged . | . . . Overloaded Fab Kills . | . . . Hacking | -11 -10 -10 --------- Run | Yrd Mat Sub Machines Accessed 7 | . 7 . Terminals 5 | . 5 . Fabricators . | . . . Repair Stations 1 | . 1 . Recycling Units 1 | . 1 . Scanalyzers . | . . . Garrison Access . | . . . Total Hacks 30 | . 30 . Successful 23 | . 23 . Failed 7 | . 7 . Catastrophic 1 | . 1 . Database Lockouts . | . . . Manual 20 | . 20 . Terminals 20 | . 20 . Fabricators . | . . . Repair Stations 6 | . 6 . Recycling Units 4 | . 4 . Scanalyzers . | . . . Garrison Access . | . . . Terminal Hacks 7 | . 7 . Level Access Points 1 | . 1 . Branch Access Points 2 | . 2 . Machine Index 1 | . 1 . Terminal Index 2 | . 2 . Zone Layout 1 | . 1 . Fabricator Hacks . | . . . Repair Station Hacks 6 | . 6 . Scan Component 3 | . 3 . Repair 3 | . 3 . Recycling Unit Hacks 4 | . 4 . Report Inventory 1 | . 1 . Retrieve Matter 1 | . 1 . Retrieve Components 2 | . 2 . Scanalyzer . | . . . Garrison Access Hacks . | . . . Unauthorized Hacks 6 | . 6 . Terminals 6 | . 6 . Track 1 | . 1 . Botnet 5 | . 5 . Fabricators . | . . . Repair Stations . | . . . Recycling Units . | . . . Scanalyzers . | . . . Garrison Access . | . . . Data Cores Recovered . | . . . Used . | . . . Hacking Detections 6 | . 6 . Full Trace Events 1 | . 1 . Feedback Events . | . . . Feedback Blocked . | . . . Robot Schematics Acquired . | . . . Robots Built . | . . . Authchips . | . . . Time . | . . . Total Robot Build Rating . | . . . Part Schematics Acquired . | . . . Parts Built . | . . . Authchips . | . . . Time . | . . . Total Part Build Rating . | . . . Parts Repaired 3 | . 3 . Time 78 | . 78 . Parts Recycled . | . . . Recycled Matter . | . . . Retrieved Matter 129 | . 129 . Retrieved Components 19 | . 19 . Parts Scanalyzed . | . . . Part Schematics Acquired . | . . . Parts Damaged . | . . . Bothacking | -11 -10 -10 ------------ Run | Yrd Mat Sub Used RIF Installer . | . . . Robots Hacked . | . . . Non-combat . | . . . Combat . | . . . Robot Hacks Applied . | . . . Relay Couplers Released . | . . . Fabnet Peak Effective % . | . . . Robots Rewired . | . . . Allies Hacked . | . . . Hacks Repelled . | . . . Allies | -11 -10 -10 -------- Run | Yrd Mat Sub Total Allies . | . . . Largest Group . | . . . Highest-Rated Group . | . . . Highest-Rated Ally . | . . . Total Orders . | . . . Ally Attacks . | . . . Total Damage . | . . . Kills . | . . . Allies Corrupted . | . . . Allies Melted . | . . . Intel | -11 -10 -10 ------- Run | Yrd Mat Sub Robot Analysis Total . | . . . Derelict Logs Recovered . | . . . Drone Launches . | . . . Drone Recoveries . | . . . Exploration | -11 -10 -10 ------------- Run | Yrd Mat Sub Turns Passed 3394 | 69 2575 750 Spaces Moved 2547 | 61 1996 490 Core 49 | 27 . 22 Treads . | . . . Legs 351 | 34 317 . Wheels 2147 | . 1679 468 Hover . | . . . Flight . | . . . Fastest Speed 50 | 50 90 90 Average Speed 97 | 89 94 111 Slowest Speed 350 | 120 120 350 Overloaded Moves . | . . . Propulsion Burnouts . | . . . Robots Hopped . | . . . Cave-ins Triggered . | . . . Exploration Rate (%) 41 | 3 100 21 Regions Visited 2 Branch Regions 1 Pre-discovered Areas . | . . . Known Exits Taken . | . . . Unknown Exits Taken 2 | 1 1 . Scrap Searched 1 | . . 1 Spaces Dug . | . . . Terrain Destroyed 3 | . 2 1 Melee . | . . . Projectile 1 | . . 1 AOE 2 | . 2 . Terrain Rammed . | . . . Walls Destroyed . | . . . Machines Disabled . | . . . Actions | -11 -10 -10 --------- Run | Yrd Mat Sub Total 3213 | 73 2517 623 Wait 416 | . 351 65 Move 2545 | 60 1995 490 Hop . | . . . Pick Up 42 | 7 31 4 Fast Attach 20 | 4 9 7 Attach 9 | 2 4 3 Detach . | . . . Swap 14 | . 10 4 Drop 38 | . 27 11 Fire 126 | . 87 39 Melee . | . . . Ram 3 | . 3 . Kick . | . . . Crush . | . . . Escape Stasis . | . . . Rewire . | . . . Trap . | . . . Miscellaneous . | . . . Route ------- -11/Scrapyard -10/Materials (discovered 6 exits: *Mat x3 / *Min x2 / [*Sub]) -10/Subcaves (discovered 1 exit: [*Mat]) History --------- Turn | Location | Event 7 | -11/Scrapyard | Discovered new exit (range 15) 70 | -11/Scrapyard | Entered Materials 136 | -10/Materials | Identified exit to Mines 279 | -10/Materials | Discovered new exit (range 7) 302 | -10/Materials | Build established: Mutant 506 | -10/Materials | Discovered new exit (range 12) 830 | -10/Materials | Identified exit to Materials 1292 | -10/Materials | Repaired Med. Storage Unit 1460 | -10/Materials | Core integrity fell below 50% 1599 | -10/Materials | Build established: Scavenger-Mutant 1663 | -10/Materials | Discovered new exit (range 8) 2177 | -10/Materials | Repaired Sensor Array 2205 | -10/Materials | Repaired Com. Wheel 2645 | -10/Materials | Entered Subcaves 2647 | -10/Subcaves | Shifting Twisted Machinery released Battle Cannon 2650 | -10/Subcaves | Shifting Twisted Machinery released Sub. Laser 2670 | -10/Subcaves | Disturbed a concealed Subdweller 2861 | -10/Subcaves | Discovered new exit (range 5) 2955 | -10/Subcaves | A Subdweller sparked back to life 2955 | -10/Subcaves | A Subdweller sparked back to life 2955 | -10/Subcaves | A Subdweller sparked back to life 2959 | -10/Subcaves | Core integrity fell below 20% 3057 | -10/Subcaves | Ambushed by angry Subdweller bent on revenge 3163 | -10/Subcaves | Found Prototype Energy Cannon 3164 | -10/Subcaves | Identified Powered Cannon 3165 | -10/Subcaves | Attached Powered Cannon, gained temporary slot: Power 3395 | -10/Subcaves | Destroyed by Y1-743(R) with Subdweller Laser Last Messages --------------- 03175_ Subatomizers dissect the Sub. Beam Cannon. 03176_ Dropped Sub. Monowheel. 03177_ Dropped Wheel. 03181_ Acquired 42 matter. 03183_ Acquired 26 matter. 03184_ Acquired 3 matter. 03185_ Acquired 4 matter. 03187_ Subatomizers dissect the Sub. Beam Cannon. 03201_ Acquired 7 matter. 03203_ Acquired 9 matter. 03274_ Sub. Monowheel shoots sparks and powers down. 03343_ Dropped Broken Sub. Monowheel. 03348_ Acquired Sub. Monowheel. 03393_ WG-ZE6(R) suffers critical hit (Meltdown). 03393_ Sub. Optics melted. 03393_ Sub. Monowheel melted. Map ----- +----------------------------------------------------+ | #????????????????????????????????????????????????? | | ##???????????????????????????????????????????????? | | ##??????????????????????????????????????????????? | | #??????????????????????????????????????????????? | | #??????????????????????????????????????????????? | | #??????????????????????????????????????????????? | | #?###??????????????????????????????????????????? | | ## ##??####???????????????????????????????????? | | #??# ##??????????????????????????????????? | | #??# ##??########???????????????????????? | | ### ##### #?## #???????????????????????? | | ######## #?# "#???????????????????????? | | ## ##?# "#???????????????????????? | | ##?# ""#???????????????????????? | | ### "##??????????????????????? | | # ## ## ## "#??????????? ??????????? | | ######### #??????"? ??????????? | | ????????## ##???""" #??????????? | | ?????????#### O ####""" #???????????? | | ????????????## ### " " ##?????????????? | | ?????????????### ##?# " #?????????????? | | ???????????????# ##?## [%" #?????????????? | | ?????????????### #??# [ """#????????????? | | ?????????????# ##?# R##### """"????????????? | | ?????????????## #?### #?????"""?????????????? | | ???????????#### ####???#@ #?????????????????????? | | ??????????## #??????#! #?????????????????????? | | ?????????## #?????# #?????????????????????? | | ????????## #???? ##?????????????????????? | | ????????# #?? #??????????????????????? | | ????????# ## #??????????????????????? | | ???????## ##### #??????????????????????? | | ??????## ##???## ##??????????????????????? | | ?????## #?????# ????????????????????????? | | ?????# = ##???? #????????????????????????? | | ?????# #??? ?????????????????????????? | | ?????# ####?? ?????????????????????????? | | ????## ##????## ?????????????????????????? | | ????# #??????# ## ?????????????????????????? | | ???# #?????? ?# ?????????????????????????? | | ???# ####?????????? ??????????????????????????? | | ???## ##????????????????????????????????????????? | | ????####?????????????????????????????????????????? | | ?????????????????????????????????????????????????? | | ?????????????????????????????????????????????????? | | ?????????????????????????????????????????????????? | | ?????????????????????????????????????????????????? | | ?????????????????????????????????????????????????? | | ?????????????????????????????????????????????????? | | ?????????????????????????????????????????????????? | +----------------------------------------------------+ Best States ------------- Heat Dissipation 39 Energy Generation 15 Energy Capacity 275 Matter Stores 300 Matter Capacity 300 Sight Range 16 Robot Scan Range 14 Terrain Scan Density 10 Resistance: KI 20 Resistance: TH 20 Resistance: EX 20 Resistance: EM 20 Resistance: I 20 Resistance: S 20 Resistance: P 20 Evasion (%) 55 Offensive Hacking 10 Item Schematics ----------------- None Robot Schematics ------------------ None Fabricated ------------ Nothing Alien Tech Used ----------------- None Achievements -------------- None Challenges ------------ None Game ------ Seed SmartbombFlightProcessor Manual? 0 Play Time 00:24:28 Cumulative 80.9 hours Start 2024.07.25 @ 11:55:10 End 2024.07.25 @ 12:19:58 Sessions 1 Manual Loads 0 Difficulty Adventurer Special Mode None Game No. 118 Rogue 0 Adventurer 118 Explorer 0 Win Type - Total 0 Types 0/0/0/0/0/0/0/0/0 Lore% 44 Gallery% 46 Achievement% 33 Wizard Run 0 Options --------- Layout 2 ASCII 0 Keyboard 0 Movement Mouse Keybinds 0 Fullscreen 2 Font 48/Smallcaps Map View 50x44 Zoom Use 0% Tactical HUD 1 Map Filters NONE Filters NONE Steam 1 RUN: 51704aa0-4a23-460b-98a6-220f5e438c2f